[Event "Kragero Resort ELO 2024"]
[Site "Kragero"]
[Date "2024.02.23"]
[Round "6.19"]
[White "Andersen, Lars Loberg"]
[Black "Sathish, Githiha"]
[Result "0-1"]
[ECO "B20"]
[WhiteElo "1429"]
[BlackElo "1332"]
[Annotator "NA RC"]
[PlyCount "68"]
[EventDate "2024.02.21"]
[EventType "swiss"]
[EventCountry "NOR"]
[SourceTitle "playchess.com"]
[Source "ChessBase"]
[SourceQuality "1"]
[TimeControl "5400+30"]

1. e4 c5 2. b3 d6 3. Bb2 Nf6 4. Nc3 a6 5. d4 cxd4 6. Qxd4 Nc6 7. Qd2 b5 8. Bd3 Bb7 9. Nf3 e6 10. e5 dxe5 11. O-O-O Qc7 12. Qe2 O-O-O 13. Ne4 Nd5 14. c4 Nf4 15. Qf1 Nb4 16. Bb1 f6 17. Rxd8+ Kxd8 18. g3 Ng6 19. a3 Nc6 20. Qd3+ Kc8 21. c5 Nd4 22. Bxd4 exd4 23. Kd2 e5 24. Nh4 Nxh4 25. gxh4 f5 26. Nd6+ Bxd6 27. cxd6 Qc3+ 28. Ke2 Qxd3+ 29. Bxd3 Bxh1 30. Bxf5+ Kd8 31. f3 Rf8 32. Be4 Kd7 33. h5 Kxd6 34. h4 {[%emt 1:21:15]} d3+ {[%emt 1:05:52]} 0-1

[Event "Kragero Resort ELO 2024"]
[Site "Kragero"]
[Date "2024.02.23"]
[Round "6.20"]
[White "Robertsen, Nikolas"]
[Black "Nordahl, Frederik"]
[Result "0-1"]
[ECO "D00"]
[WhiteElo "1236"]
[BlackElo "1396"]
[Annotator "NA"]
[PlyCount "44"]
[EventDate "2024.02.21"]
[EventType "swiss"]
[EventCountry "NOR"]
[SourceTitle "playchess.com"]
[Source "ChessBase"]
[SourceQuality "1"]
[TimeControl "5400+30"]

1. d4 Nf6 2. Bf4 d5 3. e3 Bf5 4. Bd3 Bg6 5. f3 e6 6. Ne2 Bd6 7. Bg5 Be7 8. Nbc3 c5 9. Bxg6 hxg6 10. e4 cxd4 11. Nxd4 dxe4 12. fxe4 Nh5 13. Bxe7 Qxe7 14. e5 Qh4+ 15. g3 Nxg3 16. Nf3 Qb4 17. Rg1 Ne4 18. Qd3 Nxc3 19. bxc3 Qb6 20. Kd2 Nd7 21. Rab1 Qc7 22. Qe4 {[%emt 0:14:46]} Nc5 {[%emt 0:30:45]} 0-1

[Event "Kragero Resort ELO 2024"]
[Site "Kragero"]
[Date "2024.02.23"]
[Round "6.21"]
[White "Halvorsen, Frode"]
[Black "Nguyen, Tyson Quang Hy"]
[Result "1-0"]
[ECO "C66"]
[WhiteElo "1385"]
[BlackElo "1267"]
[Annotator "NA"]
[PlyCount "131"]
[EventDate "2024.02.21"]
[EventType "swiss"]
[EventCountry "NOR"]
[SourceTitle "playchess.com"]
[Source "ChessBase"]
[SourceQuality "1"]
[TimeControl "5400+30"]

1. e4 e5 2. Nf3 Nc6 3. Bb5 d6 4. O-O Nf6 5. d3 Be7 6. h3 O-O 7. a4 Be6 8. Ng5 Nd4 9. Nxe6 Nxe6 10. Be3 c5 11. a5 Nd4 12. Bxd4 cxd4 13. Nd2 Rc8 14. Bc4 d5 15. exd5 Nxd5 16. Qf3 Rc5 17. Nb3 e4 18. Qxe4 Nf6 19. Qxd4 Rg5 20. Qxd8 Rxd8 21. Rfe1 Bd6 22. c3 Nh5 23. g3 Nf4 24. Kh2 Ng6 25. f4 Rh5 26. Kg2 Ne7 27. Nd2 Nc6 28. b4 Rh6 29. Re4 Kf8 30. Nf3 Rg6 31. Ne5 Nxe5 32. fxe5 Bc7 33. Re3 Re8 34. d4 f6 35. e6 Re7 36. Rd1 f5 37. d5 Bd6 38. Rf1 Rf6 39. Ref3 g6 40. g4 Rc7 41. Bb3 f4 42. Re1 Ke7 43. Ba4 h5 44. gxh5 gxh5 45. Kf2 Rh6 46. Rg1 Rh7 47. Rg8 Be5 48. Re8+ Kf6 49. Rd3 Bd6 50. Rg8 Rcg7 51. Rxg7 Rxg7 52. Bd7 h4 53. Rd1 Rg3 54. Rc1 Rxh3 55. e7 Re3 56. e8=Q Rxe8 57. Bxe8 Ke5 58. Bf7 Be7 59. Re1+ Kd6 60. Rxe7 Kxe7 61. Be6 a6 62. Kf3 Kd6 63. Kxf4 h3 64. Kg3 h2 65. Kxh2 b5 {[%emt 0:52:47]} 66. axb6 {[%emt 1:45:06]} 1-0

[Event "Kragero Resort ELO 2024"]
[Site "Kragero"]
[Date "2024.02.23"]
[Round "6.23"]
[White "Holten, Terje"]
[Black "Hagen, Bjorn Stian"]
[Result "1-0"]
[ECO "E32"]
[WhiteElo "1313"]
[BlackElo "1278"]
[Annotator "NA RC"]
[PlyCount "168"]
[EventDate "2024.02.21"]
[EventType "swiss"]
[EventCountry "NOR"]
[SourceTitle "playchess.com"]
[Source "ChessBase"]
[SourceQuality "1"]
[TimeControl "5400+30"]

1. d4 Nf6 2. c4 e6 3. Nc3 Bb4 4. Qc2 O-O 5. Nf3 b6 6. e3 Bb7 7. Be2 d6 8. a3 Bxc3+ 9. Qxc3 Nbd7 10. O-O c5 11. b3 cxd4 12. exd4 Rc8 13. Bb2 d5 14. Qe3 Qc7 15. Ne5 Nxe5 16. dxe5 Ne4 17. Rac1 Qe7 18. cxd5 Bxd5 19. Bf3 Qb7 20. Bxe4 Bxe4 21. Qg3 Rfd8 22. Rxc8 Qxc8 23. Bc1 Rd3 24. Qg4 Bf5 25. Qa4 Qd8 26. b4 Rd5 27. Bf4 b5 28. Qb3 Rd3 29. Qb2 Rd1 30. Qe2 Rxf1+ 31. Qxf1 a6 32. h3 Qd3 33. Qc1 Qb1 34. Qxb1 Bxb1 35. Be3 Kf8 36. Bc5+ Ke8 37. f4 Kd7 38. Kf2 Kc6 39. Ke3 Kd5 40. Bf8 g6 41. Kd2 Kc4 42. Kc1 Bd3 43. g4 Bf1 44. h4 Bh3 45. g5 Kd4 46. Kd2 Ke4 47. Kc3 Kxf4 48. Kd4 Bf5 49. Be7 Kg4 50. Kc5 Kxh4 51. Kb6 Kg4 52. Kxa6 Bd3 53. Ka5 Kh5 54. a4 bxa4 55. Kxa4 h6 56. gxh6 Kxh6 57. b5 Be4 58. b6 g5 59. Kb5 Bb7 60. Kc4 Kg6 61. Kd4 Kf5 62. Bf6 Kf4 63. Bg7 g4 64. Bh6+ Kf3 65. Be3 g3 66. Kd3 g2 67. Bg1 Kg4 68. Ke3 Kf5 69. Bh2 g1=Q+ 70. Bxg1 Kxe5 71. Bh2+ Kd5 72. Kf4 f6 73. Ke3 e5 74. Bg1 f5 75. Kd2 Ke4 76. Ke2 Ba6+ 77. Kd2 Kf3 78. Kc3 Ke2 79. Kb4 f4 80. Kc5 e4 81. Kc6 f3 82. b7 Bxb7+ 83. Kxb7 f2 84. Bxf2 {[%emt 1:32:34]} Kxf2 {[%emt 2:12:30]} 1-0

[Event "Kragero Resort ELO 2024"]
[Site "Kragero"]
[Date "2024.02.23"]
[Round "6.24"]
[White "Germiani, Yaro"]
[Black "Jullum, Hege Ibsen"]
[Result "1-0"]
[ECO "C42"]
[WhiteElo "1287"]
[BlackElo "1128"]
[Annotator "NA RC"]
[PlyCount "109"]
[EventDate "2024.02.21"]
[EventType "swiss"]
[EventCountry "NOR"]
[SourceTitle "playchess.com"]
[Source "ChessBase"]
[SourceQuality "1"]
[TimeControl "5400+30"]

1. e4 e5 2. Nf3 Nf6 3. Nc3 Bb4 4. Nxe5 d6 5. Nf3 Bxc3 6. dxc3 Nxe4 7. Qe2 d5 8. Ng5 Qe7 9. Nxe4 Qxe4 10. Qxe4+ dxe4 11. Bb5+ c6 12. Bc4 O-O 13. Bf4 Be6 14. Bxe6 fxe6 15. Bg3 Nd7 16. O-O-O Nb6 17. Rhe1 Nd5 18. Rxe4 Rae8 19. Rde1 Kf7 20. Rd4 g5 21. h4 gxh4 22. Bxh4 e5 23. Rde4 Nf4 24. Rxe5 Nxg2 25. Re7+ Rxe7 26. Rxe7+ Kg6 27. Bg3 Rf7 28. Re4 Kf5 29. Rd4 h5 30. Kd1 Re7 31. a4 Re4 32. b4 h4 33. Bc7 h3 34. Rd8 Kg4 35. Bh2 Kf3 36. Rd3+ Kxf2 37. Rxh3 Re1+ 38. Kd2 Re2+ 39. Kd3 Ne1+ 40. Kc4 Kg2 41. Rh7 Nxc2 42. Bb8 Re4+ 43. Kd3 Re8 44. Bxa7 Ne1+ 45. Kc4 Ra8 46. Rxb7 Nf3 47. a5 Ng5 48. Rg7 Kf3 49. Rxg5 Rxa7 50. Kc5 Ke3 51. Kxc6 Kd3 52. Rc5 Kc2 53. Kb6 Rf7 54. a6 Kb3 {[%emt 1:41:38]} 55. a7 {[%emt 0:39:31]} 1-0

[Event "Kragero Resort ELO 2024"]
[Site "Kragero"]
[Date "2024.02.23"]
[Round "6.25"]
[White "Lorentzen, Jan Ove"]
[Black "Persson, Michael"]
[Result "1-0"]
[ECO "B13"]
[WhiteElo "1479"]
[BlackElo "1296"]
[Annotator "NA RC"]
[PlyCount "101"]
[EventDate "2024.02.21"]
[EventType "swiss"]
[EventCountry "NOR"]
[SourceTitle "playchess.com"]
[Source "ChessBase"]
[SourceQuality "1"]
[TimeControl "5400+30"]

1. Nf3 d5 2. d4 Nf6 3. Bf4 e6 4. e3 c5 5. c3 cxd4 6. exd4 Nc6 7. Bd3 Bd6 8. Ne5 Bxe5 9. dxe5 Nd7 10. Qe2 f6 11. Qh5+ Kf8 12. Bxh7 f5 13. Bg5 Rxh7 14. Qg6 Qb6 15. b3 Rh8 16. Qxe6 Ndxe5 17. Qxd5 Ng4 18. Qd6+ Kf7 19. Qf4 Re8+ 20. Kf1 Nce5 21. Bh4 Nd3 22. Qc4+ Qe6 23. Nd2 Qxc4 24. Nxc4 Re6 25. Rd1 Nge5 26. Ne3 g6 27. Nd5 Bd7 28. Nc7 Rae8 29. Nxe6 Rxe6 30. Bg5 Bc6 31. f3 Nc5 32. Be3 b6 33. Bxc5 bxc5 34. Kf2 f4 35. h4 c4 36. Rd4 Nd3+ 37. Kg1 Re1+ 38. Kh2 Rxh1+ 39. Kxh1 cxb3 40. axb3 Nc1 41. Rxf4+ Kg7 42. b4 Ne2 43. Rc4 Ba4 44. Rc7+ Kh6 45. c4 a6 46. Ra7 Bb3 47. c5 Bc4 48. c6 Nd4 49. c7 Be6 50. Rxa6 Bd7 {[%emt 1:33:37]} 51. Rd6 {[%emt 0:23:02]} 1-0

[Event "Kragero Resort ELO 2024"]
[Site "Kragero"]
[Date "2024.02.24"]
[Round "7.7"]
[White "Rynning, Rune Kleiven"]
[Black "Eckholdt, Carl Marcus"]
[Result "1-0"]
[ECO "B30"]
[WhiteElo "1713"]
[BlackElo "1575"]
[Annotator "NA"]
[PlyCount "73"]
[EventDate "2024.02.21"]
[EventType "swiss"]
[EventCountry "NOR"]
[SourceTitle "playchess.com"]
[Source "ChessBase"]
[SourceQuality "1"]
[TimeControl "5400+30"]

1. e4 c5 2. Nf3 Nc6 3. Bb5 Qc7 4. O-O Nf6 5. Re1 e5 6. c3 Be7 7. d4 cxd4 8. cxd4 exd4 9. Nxd4 Nxd4 10. Qxd4 Qc5 11. Qxc5 Bxc5 12. Be3 Bxe3 13. Rxe3 O-O 14. Nc3 a6 15. Be2 d6 16. Rd1 Bd7 17. Rxd6 Bc6 18. e5 Nd7 19. f4 Rfe8 20. Nd5 Rac8 21. Nb4 Nb8 22. Nxc6 Nxc6 23. Bg4 Rc7 24. Bd7 Rb8 25. Bxc6 Rxc6 26. Rxc6 bxc6 27. Rc3 Rc8 28. Kf2 Kf8 29. Ke3 Ke7 30. Rd3 a5 31. Ra3 Ra8 32. Ra4 Rb8 33. b3 Rb5 34. Rc4 c5 35. Ke4 h5 36. Kd5 Kd7 {[%emt 0:55:09]} 37. Rxc5 {[%emt 1:10:35]} 1-0

[Event "Kragero Resort ELO 2024"]
[Site "Kragero"]
[Date "2024.02.24"]
[Round "7.8"]
[White "Johannessen, Martin T."]
[Black "Syreng, Gard Alexander Bye"]
[Result "1-0"]
[ECO "E61"]
[WhiteElo "1660"]
[BlackElo "1244"]
[Annotator "NA RC"]
[PlyCount "71"]
[EventDate "2024.02.21"]
[EventType "swiss"]
[EventCountry "NOR"]
[SourceTitle "playchess.com"]
[Source "ChessBase"]
[SourceQuality "1"]
[TimeControl "5400+30"]

1. d4 d6 2. c4 Nf6 3. Nf3 g6 4. Nc3 Bg7 5. e4 O-O 6. Bf4 Bg4 7. Be2 Nbd7 8. d5 e5 9. Be3 Nb6 10. Qb3 c6 11. h3 Bd7 12. O-O c5 13. a4 a5 14. Bd3 Ne8 15. Nb5 Bxb5 16. Qxb5 h6 17. Nd2 f5 18. f4 fxe4 19. Nxe4 exf4 20. Bxf4 Bd4+ 21. Kh1 Ng7 22. Bxd6 Rxf1+ 23. Rxf1 Nf5 24. Bxc5 Bxc5 25. Qxc5 Rc8 26. Qxa5 Ra8 27. Qd2 Nxa4 28. g4 Qh4 29. gxf5 Qxh3+ 30. Kg1 gxf5 31. Nf6+ Kf7 32. Rxf5 Qg3+ 33. Qg2 Qxd3 34. Ne4+ Ke8 35. Qg8+ {[%emt 1:46:10]} Kd7 {[%emt 1:35:19]} 36. Rf7# {[%emt 1:46:40]} 1-0

[Event "Kragero Resort ELO 2024"]
[Site "Kragero"]
[Date "2024.02.24"]
[Round "7.9"]
[White "Smedsrud, Petter"]
[Black "Gjersvik, Aksel Elias"]
[Result "1/2-1/2"]
[ECO "C78"]
[WhiteElo "1580"]
[BlackElo "1451"]
[Annotator "NA"]
[PlyCount "86"]
[EventDate "2024.02.21"]
[EventType "swiss"]
[EventCountry "NOR"]
[SourceTitle "playchess.com"]
[Source "ChessBase"]
[SourceQuality "1"]
[TimeControl "5400+30"]

1. e4 e5 2. Nf3 Nc6 3. Bb5 a6 4. Ba4 Nf6 5. O-O b5 6. Bb3 Nxe4 7. Nxe5 Nxe5 8. Bd5 c6 9. Bxe4 Bd6 10. d4 Nc4 11. b3 Nb6 12. c4 bxc4 13. bxc4 Nxc4 14. Qe2 Qe7 15. Nc3 Nb6 16. Re1 Kf8 17. a4 Bb4 18. Bd2 d5 19. Bd3 Qxe2 20. Rxe2 a5 21. Rae1 Bd7 22. Rb1 Bxc3 23. Bxc3 Nxa4 24. Bxa5 g6 25. Bd2 h5 26. Rb7 Bc8 27. Rc7 Ba6 28. Bxa6 Rxa6 29. Ree7 Rh7 30. Bg5 Nc3 31. Rc8+ Kg7 32. f3 Nb5 33. Bf4 Kf6 34. Rce8 Ra4 35. Be5+ Kf5 36. Rc8 Nxd4 37. Bxd4 Rxd4 38. Rxc6 Rc4 39. Rxc4 dxc4 40. Rc7 Kf6 41. Kf2 Rh8 42. Rxc4 Re8 43. Rc5 {[%emt 1:37:19]} Rb8 {[%emt 0:56:31]} 1/2-1/2

[Event "Kragero Resort ELO 2024"]
[Site "Kragero"]
[Date "2024.02.24"]
[Round "7.10"]
[White "Mortensen, Michael"]
[Black "Kveim, Ingvar Torjesen"]
[Result "1/2-1/2"]
[ECO "C45"]
[WhiteElo "1330"]
[BlackElo "1542"]
[Annotator "NA RC"]
[PlyCount "92"]
[EventDate "2024.02.21"]
[EventType "swiss"]
[EventCountry "NOR"]
[SourceTitle "playchess.com"]
[Source "ChessBase"]
[SourceQuality "1"]
[TimeControl "5400+30"]

1. e4 e5 2. Nf3 Nc6 3. d4 exd4 4. Nxd4 Bc5 5. Be3 Bb6 6. Nc3 d6 7. Bc4 Nf6 8. Nxc6 bxc6 9. Bxb6 axb6 10. e5 Ng4 11. exd6 cxd6 12. Qe2+ Qe7 13. Qxe7+ Kxe7 14. h3 Ne5 15. Bb3 Be6 16. Bxe6 fxe6 17. O-O-O Rhf8 18. f3 b5 19. a3 Nc4 20. Rhe1 b4 21. axb4 Rfb8 22. b3 Ra1+ 23. Nb1 Na3 24. Kb2 Rxb1+ 25. Rxb1 Nxb1 26. Rxb1 Rxb4 27. Ra1 c5 28. Ra7+ Kf6 29. Rd7 Rd4 30. Kc3 e5 31. Ra7 h5 32. Ra4 Rd1 33. Re4 g5 34. Re2 Kf5 35. Rd2 Rxd2 36. Kxd2 Kf4 37. Ke2 e4 38. fxe4 Kxe4 39. c3 d5 40. g3 d4 41. cxd4 Kxd4 42. Kd2 c4 43. bxc4 Kxc4 44. Kc2 Kd4 45. Kd2 Ke4 46. Ke2 {[%emt 1:07:03]} Ke5 {[%emt 1:34:51]} 1/2-1/2

[Event "Kragero Resort ELO 2024"]
[Site "Kragero"]
[Date "2024.02.24"]
[Round "7.11"]
[White "Hoifodt, Jakob Salen"]
[Black "Alvanjyan, Aida"]
[Result "0-1"]
[ECO "E05"]
[WhiteElo "1373"]
[BlackElo "1508"]
[Annotator "NA RC"]
[PlyCount "54"]
[EventDate "2024.02.21"]
[EventType "swiss"]
[EventCountry "NOR"]
[SourceTitle "playchess.com"]
[Source "ChessBase"]
[SourceQuality "1"]
[TimeControl "5400+30"]

1. d4 Nf6 2. Nf3 e6 3. c4 d5 4. g3 Be7 5. Bg2 O-O 6. O-O dxc4 7. Nc3 c5 8. dxc5 Qc7 9. Bf4 Qxc5 10. Qc2 Nc6 11. Be3 Qa5 12. a3 e5 13. Nd2 Qa6 14. Nd5 Nxd5 15. Bxd5 c3 16. Qxc3 Qxe2 17. Bf3 Qa6 18. Rfe1 Be6 19. Be2 Qa5 20. b4 Qd8 21. Ne4 Rc8 22. Bc5 Nd4 23. Bxe7 Qxe7 24. Qd3 Bc4 25. Qd1 Nxe2+ 26. Rxe2 Bxe2 27. Qxe2 {[%emt 1:26:11]} Rfd8 {[%emt 1:11:44]} 0-1

[Event "Kragero Resort ELO 2024"]
[Site "Kragero"]
[Date "2024.02.24"]
[Round "7.13"]
[White "Nordahl, Christine"]
[Black "Wernberg, Nikolai Olsen"]
[Result "0-1"]
[ECO "D20"]
[WhiteElo "1333"]
[BlackElo "1850"]
[Annotator "NA RC"]
[PlyCount "102"]
[EventDate "2024.02.21"]
[EventType "swiss"]
[EventCountry "NOR"]
[SourceTitle "playchess.com"]
[Source "ChessBase"]
[SourceQuality "1"]
[TimeControl "5400+30"]

1. d4 d5 2. c4 dxc4 3. e4 e5 4. Nf3 exd4 5. Bxc4 Nc6 6. O-O Be6 7. Bb5 Bc5 8. b4 Bb6 9. a4 a6 10. Bxc6+ bxc6 11. a5 Ba7 12. Bb2 Qd6 13. Bxd4 Rd8 14. e5 Qd7 15. Na3 Bxd4 16. Nxd4 Qxd4 17. Qc2 Bd5 18. Qc1 Ne7 19. Qg5 Ng6 20. Nc2 Qf4 21. Qh5 Qh4 22. Qe2 Qc4 23. Qxc4 Bxc4 24. Rfe1 O-O 25. Ne3 Be6 26. Rac1 Nxe5 27. Red1 g6 28. Rxd8 Rxd8 29. f4 Nd3 30. Rxc6 Nxb4 31. Rxc7 Rd3 32. Nf1 Ra3 33. Rc5 Nd3 34. Rg5 Nxf4 35. Nd2 f5 36. g4 Nh3+ 37. Kg2 Nxg5 38. gxf5 Ra2 39. fxe6 Rxd2+ 40. Kg3 Nxe6 41. h4 Rd5 42. Kg4 Rxa5 43. h5 Rxh5 44. Kg3 a5 45. Kg4 a4 46. Kg3 a3 47. Kg4 a2 48. Kg3 a1=Q 49. Kg4 Qd1+ 50. Kg3 Rg5+ 51. Kh2 {[%emt 0:37:16]} Qh5# {[%emt 0:35:15]} 0-1

[Event "Kragero Resort ELO 2024"]
[Site "Kragero"]
[Date "2024.02.24"]
[Round "7.14"]
[White "Sathish, Githiha"]
[Black "Kopperud, Vidar Aleksander"]
[Result "1/2-1/2"]
[ECO "A46"]
[WhiteElo "1332"]
[BlackElo "1642"]
[Annotator "NA RC"]
[PlyCount "55"]
[EventDate "2024.02.21"]
[EventType "swiss"]
[EventCountry "NOR"]
[SourceTitle "playchess.com"]
[Source "ChessBase"]
[SourceQuality "1"]
[TimeControl "5400+30"]

1. d4 Nf6 2. Bg5 e6 3. e4 Be7 4. Nd2 b6 5. Bd3 Bb7 6. Ngf3 O-O 7. O-O h6 8. Bh4 d6 9. c3 Nbd7 10. h3 Nh5 11. Bg3 Nxg3 12. fxg3 c5 13. Qe2 Qc7 14. Rac1 Bf6 15. Qe3 Rad8 16. g4 Rfe8 17. g5 hxg5 18. Nxg5 Bxg5 19. Qxg5 Nf8 20. Nf3 Qe7 21. Qh5 a6 22. Bb1 f6 23. e5 dxe5 24. dxe5 f5 25. g4 g6 26. Qh6 Qh7 27. Qxh7+ Nxh7 {[%emt 1:17:32]} 28. gxf5 {[%emt 1:17:21]} 1/2-1/2

[Event "Kragero Resort ELO 2024"]
[Site "Kragero"]
[Date "2024.02.24"]
[Round "7.15"]
[White "Shehzad, Alina"]
[Black "Jorgensen, Catherine"]
[Result "1-0"]
[ECO "B34"]
[WhiteElo "1474"]
[BlackElo "1351"]
[Annotator "NA RC"]
[PlyCount "133"]
[EventDate "2024.02.21"]
[EventType "swiss"]
[EventCountry "NOR"]
[SourceTitle "playchess.com"]
[Source "ChessBase"]
[SourceQuality "1"]
[TimeControl "5400+30"]

1. e4 c5 2. Nf3 g6 3. d4 cxd4 4. Nxd4 Nf6 5. Nc3 Nc6 6. Be3 Bg7 7. Be2 O-O 8. Qd2 d5 9. Nxc6 bxc6 10. exd5 Nxd5 11. Bd4 e5 12. Bc5 Re8 13. Ne4 h5 14. Bc4 Qd7 15. O-O-O Rd8 16. Nd6 Bb7 17. Qd3 Bf8 18. Ne4 Qf5 19. Bxf8 Kxf8 20. Nc5 Qxd3 21. Rxd3 Rab8 22. Rhd1 Ba8 23. Bb3 Rb5 24. Na6 Rb6 25. Nc7 Rb7 26. Nxd5 cxd5 27. Bxd5 Re7 28. Bxa8 Rxa8 29. Rd8+ Rxd8 30. Rxd8+ Kg7 31. c4 Rc7 32. b3 Kf6 33. Kd2 Ke7 34. Rd5 Ke6 35. Ke3 f5 36. Ra5 Rd7 37. f3 h4 38. Ra6+ Kf7 39. c5 g5 40. b4 Rc7 41. Kd3 Rd7+ 42. Kc3 e4 43. c6 Rc7 44. fxe4 fxe4 45. Kd4 Re7 46. Ke3 Ke8 47. b5 Kd8 48. Ra4 Re5 49. Rb4 Kc7 50. a4 Re7 51. Rxe4 Rg7 52. Kf3 Kb6 53. Rc4 Rf7+ 54. Kg4 Rg7 55. Kf5 Kc7 56. Kf6 Rg8 57. Rd4 Rf8+ 58. Kxg5 Rf2 59. Rg4 a6 60. Kxh4 axb5 61. axb5 Rb2 62. Rg5 Rb4+ 63. Kh5 Rb1 64. h4 Rg1 65. g4 Rh1 66. Rc5 Rb1 {[%emt 1:53:18]} 67. g5 {[%emt 1:59:32]} 1-0

[Event "Kragero Resort ELO 2024"]
[Site "Kragero"]
[Date "2024.02.24"]
[Round "7.17"]
[White "Jahr, Even"]
[Black "Matysiak, Tommy"]
[Result "1-0"]
[ECO "B21"]
[WhiteElo "1689"]
[BlackElo "1312"]
[Annotator "NA RC"]
[PlyCount "103"]
[EventDate "2024.02.21"]
[EventType "swiss"]
[EventCountry "NOR"]
[SourceTitle "playchess.com"]
[Source "ChessBase"]
[SourceQuality "1"]
[TimeControl "5400+30"]

1. e4 c5 2. d4 cxd4 3. c3 d3 4. Bxd3 d6 5. h3 Nc6 6. Nf3 Nf6 7. c4 e6 8. Nc3 Be7 9. Be3 O-O 10. Rc1 b6 11. O-O a6 12. b3 Kh8 13. Bb1 Rb8 14. Nd4 Nxd4 15. Bxd4 b5 16. cxb5 axb5 17. Qd3 b4 18. Ne2 g6 19. Rfd1 Bb7 20. Qe3 Kg8 21. Bb6 Qe8 22. Ba7 Rc8 23. Nd4 Rxc1 24. Rxc1 e5 25. Nf3 Bd8 26. Bb6 Bxb6 27. Qxb6 Bxe4 28. Qxd6 Bxf3 29. Qxf6 Bb7 30. Qb6 Qa8 31. f3 Rb8 32. Qf6 Qa7+ 33. Kh1 Qe3 34. Rd1 Qe2 35. Rd7 Qe1+ 36. Kh2 Rf8 37. Rxb7 Qxb1 38. Qxe5 Qxa2 39. Rxb4 h5 40. Rb8 Rxb8 41. Qxb8+ Kg7 42. b4 Kf6 43. b5 Kg7 44. b6 Qa5 45. Qd6 Qb5 46. Qc7 Qb2 47. b7 Kh6 48. b8=Q Qg7 49. Qe8 Qf6 50. Qexf7 Qe5+ 51. Qxe5 g5 {[%emt 1:14:58]} 52. Qeg7# {[%emt 1:26:25]} 1-0

[Event "Kragero Resort ELO 2024"]
[Site "Kragero"]
[Date "2024.02.24"]
[Round "7.19"]
[White "Bollestad, Leiv Ove"]
[Black "Halvorsen, Frode"]
[Result "1-0"]
[ECO "C50"]
[WhiteElo "1371"]
[BlackElo "1385"]
[Annotator "NA COMBH"]
[PlyCount "47"]
[EventDate "2024.02.21"]
[EventType "swiss"]
[EventCountry "NOR"]
[SourceTitle "playchess.com"]
[Source "ChessBase"]
[SourceQuality "1"]
[TimeControl "5400+30"]

1. e4 e5 2. Nf3 Nc6 3. Bc4 h6 4. O-O Nf6 5. Re1 Bc5 6. c3 d6 7. d4 exd4 8. cxd4 Bb4 9. Nc3 O-O 10. a3 Bxc3 11. bxc3 d5 12. exd5 Nxd5 13. Bd2 Nb6 14. Bd3 Bg4 15. h3 Be6 16. Ng5 Bc4 17. Bc2 Qf6 18. Nh7 Qh4 19. Re4 Qd8 20. Nxf8 Qxf8 21. Rg4 Kh8 22. Qf3 Re8 23. Bxh6 gxh6 {[%emt 0:39:40]} 24. Qf6+ {[%emt 0:25:17]} 1-0

[Event "Kragero Resort ELO 2024"]
[Site "Kragero"]
[Date "2024.02.24"]
[Round "7.20"]
[White "Sorensen, Vidar Busch"]
[Black "Elseth, Florian"]
[Result "0-1"]
[ECO "A13"]
[WhiteElo "1313"]
[BlackElo "1513"]
[Annotator "NA"]
[PlyCount "93"]
[EventDate "2024.02.21"]
[EventType "swiss"]
[EventCountry "NOR"]
[SourceTitle "playchess.com"]
[Source "ChessBase"]
[SourceQuality "1"]
[TimeControl "5400+30"]

1. c4 Nf6 2. g3 e6 3. Bg2 d5 4. cxd5 exd5 5. d4 Bb4+ 6. Bd2 Bxd2+ 7. Nxd2 O-O 8. Ngf3 Bf5 9. O-O c6 10. Nh4 Bg6 11. b4 Qb6 12. Nxg6 hxg6 13. e3 Qxb4 14. Rb1 Qe7 15. Qc2 Na6 16. Qb3 Rab8 17. Rfe1 Qd7 18. Bf1 Nc7 19. Nf3 Ne4 20. Kg2 Rfe8 21. Rb2 f6 22. Bd3 Kh8 23. Ng1 g5 24. f3 Nd6 25. Qc2 Ncb5 26. Qf2 Re7 27. g4 Rbe8 28. Bg6 Nf7 29. Rd2 Nbd6 30. Rd3 f5 31. Qg3 fxg4 32. fxg4 Rd8 33. Nf3 Qe6 34. Qh3+ Nh6 35. Ne5 Rf8 36. Rf1 Rxf1 37. Kxf1 Nc4 38. Bf5 Qf6 39. Ng6+ Kg8 40. Nxe7+ Qxe7 41. Qf3 Nxf5 42. gxf5 Qb4 43. Qf2 Qb1+ 44. Kg2 Qxd3 45. h4 Qe4+ 46. Kh2 Qxh4+ {[%emt 1:48:06]} 47. Qxh4 {[%emt 1:54:00]} 0-1

[Event "Kragero Resort ELO 2024"]
[Site "Kragero"]
[Date "2024.02.24"]
[Round "7.21"]
[White "Linkjendal, Sondre Olsen"]
[Black "Germiani, Yaro"]
[Result "1-0"]
[ECO "C50"]
[WhiteElo "1373"]
[BlackElo "1287"]
[Annotator "NA RC"]
[PlyCount "89"]
[EventDate "2024.02.21"]
[EventType "swiss"]
[EventCountry "NOR"]
[SourceTitle "playchess.com"]
[Source "ChessBase"]
[SourceQuality "1"]
[TimeControl "5400+30"]

1. e4 e5 2. Nf3 Nc6 3. Bc4 Nf6 4. Nc3 Bc5 5. O-O O-O 6. d3 h6 7. h3 d6 8. Ne2 Ne7 9. Ng3 c6 10. c3 a5 11. d4 exd4 12. cxd4 Ba7 13. a4 Ng6 14. Qc2 d5 15. exd5 Nxd5 16. Rd1 Be6 17. Qb3 Rb8 18. Ne4 b5 19. axb5 cxb5 20. Bxd5 Bxd5 21. Qd3 Bxe4 22. Qxe4 Re8 23. Qd3 b4 24. Be3 Qd5 25. Rdc1 Ne5 26. Nxe5 Rxe5 27. Rc4 Ree8 28. Bf4 Rbc8 29. Rxc8 Rxc8 30. Qa6 Qd7 31. Qxa5 Bxd4 32. Qxb4 Bc5 33. Qe4 Bd4 34. Be5 Bxe5 35. Qxe5 Qb7 36. Qd4 Rc2 37. Qd8+ Kh7 38. Qd3+ g6 39. Qxc2 Qe7 40. Rb1 Qe5 41. b4 Qb5 42. Qc5 Qd3 43. Rc1 Qe2 44. b5 Qd2 {[%emt 1:17:49]} 45. b6 {[%emt 1:46:49]} 1-0

[Event "Kragero Resort ELO 2024"]
[Site "Kragero"]
[Date "2024.02.24"]
[Round "7.22"]
[White "Hagen, Bjorn Stian"]
[Black "Andersen, Lars Loberg"]
[Result "1-0"]
[ECO "B34"]
[WhiteElo "1278"]
[BlackElo "1429"]
[Annotator "NA"]
[PlyCount "75"]
[EventDate "2024.02.21"]
[EventType "swiss"]
[EventCountry "NOR"]
[SourceTitle "playchess.com"]
[Source "ChessBase"]
[SourceQuality "1"]
[TimeControl "5400+30"]

1. e4 c5 2. Nc3 Nc6 3. Nf3 g6 4. d4 cxd4 5. Nxd4 Bg7 6. Be3 Nf6 7. f3 d5 8. Bb5 Bd7 9. exd5 Nb4 10. Bc4 Qa5 11. Nb3 Qc7 12. Qe2 Rc8 13. Bc5 Nfxd5 14. Nxd5 Nxd5 15. Bxd5 Ba4 16. Bxf7+ Kxf7 17. Qc4+ e6 18. Qxa4 Qe5+ 19. Qe4 Rxc5 20. Nxc5 Qxc5 21. Qxb7+ Kg8 22. O-O-O Qg5+ 23. Kb1 h5 24. Rd7 Qe5 25. Rhd1 a5 26. Rxg7+ Qxg7 27. Rd8+ Kh7 28. Rd7 Rg8 29. Rxg7+ Rxg7 30. Qxg7+ Kxg7 31. Kc1 g5 32. Kd2 Kf6 33. Ke3 Kf5 34. c3 Ke5 35. b4 axb4 36. cxb4 Kd5 37. a3 e5 {[%emt 1:35:20]} 38. a4 {[%emt 1:44:46]} 1-0

[Event "Kragero Resort ELO 2024"]
[Site "Kragero"]
[Date "2024.02.24"]
[Round "7.24"]
[White "Jullum, Hege Ibsen"]
[Black "Nguyen, Tyson Quang Hy"]
[Result "0-1"]
[ECO "D02"]
[WhiteElo "1128"]
[BlackElo "1267"]
[Annotator "NA"]
[PlyCount "96"]
[EventDate "2024.02.21"]
[EventType "swiss"]
[EventCountry "NOR"]
[SourceTitle "playchess.com"]
[Source "ChessBase"]
[SourceQuality "1"]
[TimeControl "5400+30"]

1. Nf3 d5 2. d4 Bg4 3. Ne5 Bf5 4. c4 dxc4 5. Nc3 Nf6 6. Qa4+ Bd7 7. Nxd7 Nbxd7 8. e4 c6 9. Qxc4 e6 10. Bg5 Be7 11. Be2 Qb6 12. O-O O-O 13. e5 Nd5 14. Bxe7 Nxe7 15. Na4 Qd8 16. Nc5 Nxc5 17. dxc5 Qd5 18. Qc3 Ng6 19. Rfd1 Qxe5 20. Qxe5 Nxe5 21. f4 Ng6 22. g3 Rfd8 23. Kf2 Ne7 24. Rxd8+ Rxd8 25. Rd1 Rxd1 26. Bxd1 Kf8 27. Ke3 Nd5+ 28. Kd4 Ke7 29. Bc2 g6 30. a3 b6 31. cxb6 axb6 32. b4 Kd6 33. Bd3 f6 34. b5 c5+ 35. Kc4 Ne3+ 36. Kb3 Kd5 37. Be2 c4+ 38. Kb4 Nc2+ 39. Kc3 Nxa3 40. Bf3+ Kc5 41. Bc6 Nxb5+ 42. Bxb5 Kxb5 43. Kd4 e5+ 44. fxe5 fxe5+ 45. Ke4 Kc5 46. h4 b5 47. Kxe5 c3 48. Kf6 {[%emt 1:29:17]} c2 {[%emt 0:43:31]} 0-1